bitfinex-derivatives/quotes_BTCF0:USTF0_20260113
["timestamp","ask_amount","ask_price","bid_price","bid_amount"]
[1768315528925,0.010788,92782.0,92767.0,0.016]
[1768315529118,0.002,92791.0,92767.0,0.016]
[1768315529318,0.09712,92813.0,92779.0,0.00924119]
[1768315529517,0.09712,92813.0,92771.0,0.010789]
[1768315529518,0.010784,92819.0,92794.0,0.010787]
[1768315529718,0.09712,92817.0,92796.0,0.010786]
[1768315529923,0.09712,92817.0,92786.0,0.09712]
[1768315529924,0.00600917,92816.0,92786.0,0.09712]
[1768315530141,1.5,92815.0,92780.0,0.00924119]
[1768315530438,1.5,92815.0,92778.0,0.010789]
[1768315530439,1.5,92815.0,92805.0,0.010785]
[1768315530627,0.09712,92824.0,92805.0,0.010786]
[1768315530830,0.09712,92824.0,92794.0,0.010787]
[1768315530831,0.09712,92824.0,92795.0,0.00924119]
[1768315531125,0.00601392,92823.0,92799.0,0.010786]
[1768315531430,0.00601392,92823.0,92795.0,0.00924119]
[1768315531431,0.14514127,92820.0,92795.0,0.00924119]
[1768315531637,0.09712,92824.0,92804.0,0.00924119]
[1768315531825,0.09712,92824.0,92805.0,0.01124119]
[1768315532432,0.09708,92832.0,92807.0,0.010785]
[1768315532628,0.007,92820.0,92812.0,0.010785]
[1768315532828,1.5,92831.0,92808.0,0.00924119]
[1768315533032,1.5,92831.0,92810.0,0.010785]
[1768315533628,1.5,92831.0,92808.0,0.00924119]
[1768315533832,1.5,92831.0,92795.0,0.002]
[1768315533833,0.14514127,92820.0,92795.0,0.002]
[1768315534033,0.00912215,92818.0,92795.0,0.002]
[1768315534336,0.010786,92802.0,92783.0,0.00905129]
[1768315534525,0.14514127,92800.0,92743.0,0.010793]
[1768315534725,0.14514127,92800.0,92773.0,0.010789]
[1768315534917,0.14514127,92800.0,92770.0,0.09708]
[1768315534918,0.010787,92797.0,92775.0,0.010789]
[1768315535231,0.010788,92786.0,92764.0,0.01079]
[1768315535437,0.15592827,92790.0,92770.0,0.01079]
[1768315535631,0.010787,92790.0,92770.0,0.01079]
[1768315535934,0.16372421,92800.0,92762.0,0.09708]
[1768315535935,0.010787,92797.0,92778.0,0.010789]
[1768315536238,0.010787,92797.0,92777.0,0.010789]
[1768315536825,0.010786,92798.0,92779.0,0.010788]
[1768315537137,0.00012491,92797.0,92779.0,0.010789]
[1768315537333,0.00012491,92797.0,92773.0,0.0092027]
[1768315537644,0.001,92790.0,92778.0,0.010789]
[1768315537836,0.001,92790.0,92770.0,0.002]
[1768315538434,0.14514127,92790.0,92763.0,0.02029794]
[1768315538639,0.010787,92789.0,92764.0,0.09708]
[1768315538839,0.010787,92794.0,92769.0,0.01079]
[1768315539041,0.00012491,92797.0,92769.0,0.00950794]
[1768315539228,0.001,92790.0,92773.0,0.00950794]
[1768315540242,0.001,92790.0,92778.0,0.02029694]
[1768315540438,0.00012491,92797.0,92778.0,0.00950794]
[1768315540633,0.010787,92793.0,92778.0,0.00950794]
[1768315541024,0.004,92794.0,92778.0,0.00950794]
[1768315541434,0.00012491,92797.0,92778.0,0.02029694]
[1768315541637,0.010785,92809.0,92786.0,0.0092027]
[1768315541836,0.09708,92810.0,92778.0,0.002]
[1768315541837,0.09708,92810.0,92789.0,0.00950794]
[1768315542042,0.0087306,92823.0,92791.0,0.00950794]
[1768315542238,0.00956066,92824.0,92788.0,0.1062827]
[1768315542239,0.010784,92821.0,92799.0,0.00950794]
[1768315542537,0.010784,92818.0,92794.0,0.010787]
[1768315542739,0.14514127,92820.0,92788.0,0.09708]
[1768315542944,0.14514127,92820.0,92789.0,0.010787]
[1768315543139,0.09708,92828.0,92778.0,0.004]
[1768315543140,0.00956066,92808.0,92778.0,0.004]
[1768315543340,0.14514127,92800.0,92779.0,0.09708]
[1768315543539,0.14514127,92810.0,92778.0,0.004]
[1768315543740,0.14514127,92810.0,92779.0,0.09708]
[1768315543947,0.15470193,92810.0,92779.0,0.010789]
[1768315544136,0.15470193,92810.0,92780.0,0.09708]
[1768315544337,0.15470193,92810.0,92770.0,0.14514127]
[1768315544338,0.14514127,92790.0,92765.0,0.00950794]
[1768315544648,0.16548893,92790.0,92757.0,0.107765]
[1768315544846,0.00956066,92788.0,92758.0,0.09708]
[1768315545163,0.00956066,92788.0,92746.0,0.00950794]
[1768315545164,0.01079,92769.0,92746.0,0.00950794]
[1768315545346,0.01079,92765.0,92747.0,0.09708]
[1768315545639,0.00956066,92769.0,92747.0,0.09708]
[1768315546233,0.09708,92775.0,92759.0,0.010791]
[1768315546434,0.09708,92775.0,92747.0,0.09708]
[1768315546435,0.107869,92775.0,92756.0,0.010791]
[1768315546843,0.15470193,92780.0,92749.0,0.00950794]
[1768315547034,0.09708,92781.0,92758.0,0.01]
[1768315547434,0.09708,92781.0,92761.0,0.010791]
[1768315547636,0.09708,92781.0,92755.0,0.010791]
[1768315547834,0.001,92775.0,92756.0,0.015]
[1768315548035,0.15593127,92770.0,92756.0,0.015]
[1768315548236,0.14514127,92770.0,92756.0,0.00987473]
[1768315548632,0.15470193,92770.0,92740.0,0.01871064]
[1768315548834,0.00956066,92769.0,92747.0,0.08408]
[1768315549040,0.00956066,92767.0,92747.0,0.08408]
[1768315549446,0.00956066,92779.0,92750.0,0.010792]
[1768315549631,0.01079,92768.0,92750.0,0.010792]
[1768315549949,0.00956066,92779.0,92754.0,0.010791]
[1768315550130,0.00956066,92779.0,92747.0,0.09358794]
[1768315550131,0.010789,92776.0,92749.0,0.00950794]
[1768315550442,0.010789,92776.0,92739.0,0.010793]
[1768315550443,0.00956066,92769.0,92731.0,0.00950794]
[1768315550644,0.00956066,92769.0,92738.0,0.09708]
[1768315550840,0.14714127,92770.0,92748.0,0.010792]
[1768315550841,0.002,92770.0,92748.0,0.010792]
[1768315551046,0.005,92768.0,92750.0,0.001]
[1768315551446,0.010791,92758.0,92741.0,0.00950794]
[1768315551847,0.010791,92762.0,92741.0,0.00950794]
[1768315552238,0.007,92769.0,92741.0,0.00950794]
[1768315552239,0.010791,92755.0,92741.0,0.00950794]
[1768315552440,0.010791,92761.0,92742.0,0.010793]
[1768315552635,0.010792,92754.0,92741.0,0.00950794]
[1768315552840,0.010791,92757.0,92741.0,0.00950794]
[1768315553137,0.14514127,92751.0,92737.0,9.373e-05]
[1768315553335,0.14514127,92751.0,92721.0,0.00950794]
[1768315553336,0.010794,92733.0,92726.0,0.09708]
[1768315553543,0.010795,92726.0,92719.0,0.09708]
[1768315553751,0.14514127,92730.0,92716.0,0.09708]
[1768315554046,0.010795,92727.0,92716.0,0.09708]
[1768315554242,0.09708,92746.0,92716.0,0.09708]
[1768315554450,0.00010136,92745.0,92716.0,0.09708]
[1768315554643,0.14514127,92740.0,92716.0,0.09708]
[1768315554844,0.005,92730.0,92716.0,0.11708]
[1768315555251,0.010793,92742.0,92716.0,0.1262827]
[1768315555440,0.00966202,92745.0,92717.0,0.00950794]
[1768315555644,0.010794,92737.0,92717.0,0.00950794]
[1768315555851,0.010793,92741.0,92718.0,0.010796]
[1768315556048,0.01089436,92745.0,92723.0,0.010795]
[1768315556253,0.010793,92740.0,92723.0,0.00950794]
[1768315556553,0.010793,92740.0,92716.0,0.09908]
[1768315556554,0.010793,92738.0,92716.0,0.09908]
[1768315556755,0.14514127,92740.0,92718.0,0.010796]
[1768315556948,0.010793,92741.0,92720.0,0.010795]
[1768315557144,0.01089436,92745.0,92716.0,0.09708]
[1768315557339,0.00210136,92745.0,92713.0,0.00950794]
[1768315557545,0.00210136,92745.0,92686.0,0.010799]
[1768315557546,0.14514127,92723.0,92695.0,0.01871064]
[1768315557745,0.00010136,92722.0,92697.0,0.01871064]
[1768315557945,0.10668066,92732.0,92697.0,0.01871064]
[1768315557946,0.010794,92731.0,92720.0,0.002]
[1768315558147,0.002,92741.0,92720.0,0.002]
[1768315558454,0.002,92741.0,92720.0,0.01150794]
[1768315558651,0.010793,92738.0,92720.0,0.002]
[1768315559054,0.010794,92735.0,92720.0,0.002]
[1768315559355,0.010793,92738.0,92720.0,0.002]
[1768315559554,0.002,92723.0,92715.0,0.107916]
[1768315559751,0.00956066,92739.0,92720.0,0.010795]
[1768315560167,0.00956066,92739.0,92715.0,0.09712]
[1768315560354,0.14514127,92730.0,92706.0,0.09712]
[1768315560859,0.09712,92733.0,92712.0,0.010796]
[1768315561058,0.010794,92732.0,92706.0,0.09712]
[1768315561357,0.09712,92733.0,92720.0,0.01]
[1768315561557,0.00956066,92732.0,92706.0,0.09712]
[1768315561852,0.09712,92733.0,92714.0,0.010796]
[1768315562046,0.09712,92733.0,92707.0,0.00950794]
[1768315562047,0.09712,92733.0,92720.0,0.010795]
[1768315562247,0.003,92739.0,92706.0,0.09712]
[1768315562248,0.003,92739.0,92727.0,0.010795]
[1768315562454,0.003,92739.0,92731.0,0.010794]
[1768315562657,0.003,92739.0,92719.0,0.09712]
[1768315562658,0.09712,92752.0,92724.0,0.01871064]
[1768315562855,0.09712,92754.0,92737.0,0.010793]
[1768315563056,0.10668066,92754.0,92728.0,0.010794]
[1768315563241,0.10668066,92754.0,92719.0,0.00950794]
[1768315563242,0.010792,92749.0,92719.0,0.00950794]
[1768315563445,0.00956066,92753.0,92725.0,0.00950794]
[1768315563648,0.00956066,92779.0,92739.0,0.01871064]
[1768315563849,0.14514127,92780.0,92752.0,0.010792]
[1768315563850,0.010789,92772.0,92752.0,0.010792]
[1768315564147,0.09712,92778.0,92761.0,0.010791]
[1768315564350,0.09712,92778.0,92763.0,0.01079]
[1768315564658,0.00956066,92795.0,92783.0,0.010788]
[1768315564853,0.01993511,92815.0,92789.0,0.010787]
[1768315565044,0.01993511,92815.0,92782.0,0.09712]
[1768315565045,0.010785,92814.0,92790.0,0.14514127]
[1768315565359,0.010784,92818.0,92786.0,0.00900956]
[1768315565654,0.010784,92818.0,92756.0,0.053958]
[1768315565655,0.010786,92802.0,92779.0,0.010789]
[1768315565859,0.010786,92802.0,92777.0,0.00921174]
[1768315565860,0.010785,92807.0,92781.0,0.010788]
[1768315566062,0.00915111,92808.0,92783.0,0.010788]
[1768315566063,0.01993611,92808.0,92783.0,0.010788]
[1768315566356,0.00915111,92818.0,92785.0,0.00921174]
[1768315566549,0.1,92820.0,92800.0,0.010786]
[1768315566744,0.1,92820.0,92794.0,0.09712]
[1768315566947,0.1,92820.0,92795.0,0.010787]
[1768315567147,0.1,92820.0,92798.0,0.010786]
[1768315567357,0.006,92808.0,92794.0,0.09712]
[1768315567851,0.006,92808.0,92795.0,0.010787]
[1768315568055,0.006,92808.0,92794.0,0.09712]
[1768315568056,0.1,92820.0,92794.0,0.10633174]
[1768315568249,0.010785,92814.0,92795.0,0.002]
[1768315568452,0.010784,92815.0,92795.0,0.002]
[1768315568756,0.010784,92815.0,92796.0,0.09712]
[1768315569060,0.010784,92815.0,92795.0,0.002]
[1768315569061,0.010785,92807.0,92795.0,0.09912]
[1768315569355,0.00915111,92809.0,92780.0,0.010788]
[1768315569561,0.00915111,92808.0,92783.0,0.010788]
[1768315569750,0.01115111,92808.0,92795.0,0.002]
[1768315569955,0.010786,92805.0,92781.0,0.107908]
[1768315570151,0.01115111,92808.0,92786.0,0.010788]
[1768315570461,0.09708,92808.0,92786.0,0.010788]
[1768315570660,0.09708,92808.0,92786.0,0.00921174]
[1768315571050,0.09708,92808.0,92783.0,0.010788]
[1768315571251,0.09708,92808.0,92788.0,0.010788]
[1768315571451,0.10308,92808.0,92786.0,0.002]
[1768315571651,0.10308,92808.0,92780.0,0.00921174]
[1768315571954,0.10308,92808.0,92788.0,0.010787]
[1768315571955,0.006,92808.0,92788.0,0.010787]
[1768315572161,0.006,92808.0,92783.0,0.010788]
[1768315572364,0.006,92808.0,92778.0,0.09708]
[1768315572365,0.010786,92804.0,92779.0,0.010788]
[1768315572665,0.00915111,92807.0,92774.0,0.00921174]
[1768315572962,0.010786,92802.0,92783.0,0.002]
[1768315573160,0.00915111,92805.0,92783.0,0.002]
[1768315573459,0.00915111,92790.0,92762.0,0.09708]
[1768315573658,0.010788,92782.0,92762.0,0.09708]
[1768315573865,0.00915111,92790.0,92762.0,0.09708]
[1768315574159,0.00915111,92790.0,92761.0,0.010791]
[1768315574160,0.010788,92785.0,92761.0,0.010791]
[1768315574364,0.010788,92783.0,92762.0,0.02000174]
[1768315574566,0.09708,92790.0,92765.0,0.02000174]
[1768315574954,0.09708,92790.0,92759.0,0.010791]
[1768315574955,0.010788,92782.0,92759.0,0.010791]
[1768315575151,0.010788,92787.0,92751.0,7.974e-05]
[1768315575361,0.00915111,92776.0,92751.0,7.974e-05]
[1768315575665,0.01079,92771.0,92751.0,7.974e-05]
[1768315575967,0.010789,92779.0,92762.0,0.003]
[1768315576165,0.010789,92777.0,92762.0,0.003]
[1768315576458,0.09708,92778.0,92762.0,0.003]
[1768315576968,0.09708,92786.0,92764.0,0.01079]
[1768315577153,0.09708,92786.0,92763.0,0.02069478]
[1768315577350,0.09708,92786.0,92770.0,0.01079]
[1768315577858,0.09708,92786.0,92763.0,0.00990478]
[1768315577859,0.107868,92786.0,92763.0,0.00990478]
[1768315578257,0.107868,92786.0,92764.0,0.01079]
[1768315578460,0.010788,92783.0,92763.0,0.00990478]
[1768315578766,0.0091433,92782.0,92762.0,0.004]
[1768315579070,0.09708,92786.0,92752.0,0.09708]
[1768315579071,0.010791,92762.0,92752.0,0.09708]
[1768315579268,0.010791,92762.0,92752.0,0.08308]
[1768315579562,0.010789,92775.0,92763.0,0.008]
[1768315579767,0.010789,92774.0,92763.0,0.008]
[1768315579959,0.010789,92778.0,92763.0,0.008]
[1768315580159,0.010789,92776.0,92755.0,0.010791]
[1768315580371,0.010789,92780.0,92759.0,0.010791]
[1768315580559,0.010789,92776.0,92758.0,0.00990478]
[1768315580761,0.0091433,92785.0,92752.0,0.105872]
[1768315580959,0.0091433,92785.0,92752.0,0.093872]
[1768315581256,0.09708,92786.0,92738.0,0.09708]
[1768315581257,0.14514127,92762.0,92738.0,0.09708]
[1768315581460,0.010792,92749.0,92723.0,0.09708]
[1768315581667,0.0091433,92755.0,92726.0,0.010795]
[1768315581868,0.010792,92752.0,92729.0,0.010794]
[1768315582060,0.010792,92751.0,92731.0,0.010794]
[1768315582264,7.974e-05,92750.0,92731.0,0.010794]
[1768315582969,7.974e-05,92750.0,92735.0,0.010794]
[1768315583269,0.010792,92746.0,92724.0,0.010795]
[1768315583459,0.010792,92749.0,92724.0,0.00990478]
[1768315584055,7.974e-05,92750.0,92724.0,0.00990478]
[1768315584258,0.00407974,92750.0,92735.0,0.003]
[1768315584864,3.23985606,92850.0,92735.0,0.003]
[1768315584865,0.010791,92760.0,92743.0,0.00990478]
[1768315585065,0.01079,92764.0,92743.0,0.00990478]
[1768315585262,0.09708,92767.0,92747.0,0.010792]
[1768315585572,0.14514127,92780.0,92740.0,0.00994191]
[1768315585573,0.09708,92782.0,92757.0,0.00990478]
[1768315585773,0.09708,92783.0,92757.0,0.00990478]
[1768315586667,0.006,92767.0,92761.0,0.010791]
[1768315586869,0.09708,92783.0,92765.0,0.01079]
[1768315587370,0.010788,92781.0,92757.0,0.02469578]
[1768315587566,0.010788,92781.0,92758.0,0.010791]
[1768315587877,0.010789,92779.0,92757.0,0.02469578]
[1768315588166,0.10208,92783.0,92757.0,0.014791]
[1768315588167,0.15592927,92780.0,92757.0,0.014791]
[1768315588374,0.1112233,92783.0,92762.0,0.01079]
[1768315588569,0.1220113,92783.0,92762.0,0.01079]
[1768315588866,0.010789,92780.0,92765.0,0.008]
[1768315589067,0.1062233,92783.0,92765.0,0.008]
[1768315589068,0.1102233,92783.0,92765.0,0.008]
[1768315589263,0.010788,92782.0,92757.0,0.010791]
[1768315589463,0.010788,92781.0,92759.0,0.010791]
[1768315589663,0.0091433,92782.0,92755.0,0.09712]
[1768315589858,0.0091433,92782.0,92747.0,0.00990478]
[1768315589859,0.0091433,92777.0,92747.0,0.00990478]
[1768315590063,0.10108,92783.0,92747.0,0.00990478]
[1768315590064,0.01079,92768.0,92747.0,0.09708]
[1768315590261,0.10008,92783.0,92733.0,0.09708]
[1768315590262,0.0091433,92759.0,92733.0,0.09708]
[1768315590464,0.0091433,92759.0,92725.0,0.09708]
[1768315590465,0.0091433,92744.0,92725.0,0.09708]
[1768315590662,0.14514127,92740.0,92720.0,0.09708]
[1768315590859,0.0091433,92744.0,92720.0,0.09708]
[1768315591068,0.0091433,92744.0,92701.0,0.00994191]
[1768315591069,0.0091433,92739.0,92709.0,0.00990478]
[1768315591271,0.09708,92746.0,92711.0,0.00990478]
[1768315591464,0.0091433,92750.0,92717.0,0.00990478]
[1768315591659,0.0091433,92750.0,92712.0,0.00994191]
[1768315591660,0.0091433,92747.0,92726.0,0.010795]
[1768315591865,0.010793,92743.0,92722.0,0.010795]
[1768315592275,0.0091433,92747.0,92730.0,0.010794]
[1768315592461,0.010793,92744.0,92723.0,0.010795]
[1768315592659,0.0091433,92747.0,92726.0,0.010795]
[1768315592960,0.0199353,92747.0,92718.0,0.10702478]
[1768315593158,0.0091433,92747.0,92718.0,0.10702478]
[1768315593363,0.0091433,92742.0,92709.0,0.00990478]
[1768315593572,0.010793,92738.0,92710.0,0.09712]
[1768315593775,0.010793,92741.0,92721.0,0.010795]
[1768315594076,0.010793,92741.0,92711.0,0.00990478]
[1768315594279,0.010793,92741.0,92721.0,0.010795]
[1768315594579,0.010793,92740.0,92718.0,0.004]
[1768315594875,0.010793,92742.0,92720.0,0.010795]
[1768315595376,0.010793,92745.0,92723.0,0.010795]
[1768315595570,0.09712,92744.0,92722.0,0.00987749]
[1768315595767,0.005,92741.0,92726.0,0.010795]
[1768315595968,0.005,92741.0,92722.0,0.00987749]
[1768315596172,0.010794,92736.0,92721.0,0.003]
[1768315596469,0.00924801,92739.0,92704.0,0.02067449]
[1768315596680,0.09712,92744.0,92695.0,0.02067549]
[1768315596681,0.00924801,92729.0,92695.0,0.02067549]
[1768315596975,0.010796,92712.0,92696.0,0.09712]
[1768315597179,0.010796,92715.0,92697.0,0.010798]
[1768315597371,0.010795,92726.0,92696.0,0.09712]
[1768315597572,0.010796,92718.0,92696.0,0.09712]
[1768315597774,0.010795,92721.0,92699.0,0.010798]
[1768315597969,0.010795,92721.0,92701.0,0.010798]
[1768315598175,0.010795,92721.0,92702.0,0.010798]
[1768315598574,0.010795,92723.0,92704.0,0.010797]
[1768315598881,0.09712,92722.0,92704.0,0.010797]
[1768315599082,0.02,92715.0,92704.0,0.010797]
[1768315599472,0.010795,92724.0,92705.0,0.00987749]
[1768315599877,0.010795,92722.0,92701.0,0.010798]
[1768315600181,0.11559739,92729.0,92701.0,0.010798]
[1768315600382,0.02,92723.0,92701.0,0.010798]
[1768315600680,0.02,92723.0,92704.0,0.010797]
[1768315601071,0.02,92723.0,92697.0,0.00987749]
[1768315601384,0.010795,92722.0,92697.0,0.00987749]
[1768315601577,0.02,92723.0,92697.0,0.00987749]
[1768315601974,0.010796,92718.0,92697.0,0.00987749]
[1768315602286,0.107916,92718.0,92701.0,0.003]
[1768315602474,0.09712,92718.0,92701.0,0.003]
[1768315602680,0.09712,92718.0,92701.0,0.013798]
[1768315602986,0.00922938,92713.0,92694.0,9.547e-05]
[1768315603291,0.00924801,92699.0,92673.0,0.00539531]
[1768315603475,0.0108,92683.0,92673.0,3.1e-07]
[1768315603888,0.09712,92688.0,92647.0,0.00965271]
[1768315603889,0.01847739,92686.0,92647.0,0.00965271]
[1768315604084,0.09712,92688.0,92642.0,0.06067542]
[1768315604085,0.010801,92670.0,92645.0,0.010804]
[1768315604385,0.00924801,92665.0,92644.0,0.010804]
[1768315604590,0.09712,92667.0,92648.0,0.00987749]
[1768315605194,0.09712,92667.0,92648.0,0.01068149]
[1768315605380,0.09712,92667.0,92646.0,0.00965271]
[1768315605586,0.107922,92667.0,92642.0,0.010804]
[1768315605892,0.107922,92667.0,92636.0,0.10677271]
[1768315605893,0.00924801,92665.0,92636.0,0.10677271]
[1768315606085,0.00924801,92665.0,92610.0,0.01092811]
[1768315606086,0.00922938,92665.0,92613.0,0.00477399]
[1768315606286,0.010802,92662.0,92632.0,0.010806]
[1768315606592,0.010804,92644.0,92620.0,0.10792434]
[1768315606782,0.00924801,92643.0,92621.0,0.09716]
[1768315606978,0.010805,92641.0,92621.0,0.09716]
[1768315607178,0.010806,92630.0,92613.0,0.00477399]
[1768315607382,9.547e-05,92642.0,92613.0,0.00477399]
[1768315607383,0.010805,92636.0,92613.0,0.00477399]
[1768315607691,0.010805,92637.0,92614.0,0.09716]
[1768315607887,9.547e-05,92642.0,92614.0,0.09716]
[1768315608083,0.010805,92638.0,92614.0,0.09716]
[1768315608486,0.010806,92633.0,92613.0,0.00477399]
[1768315609190,9.547e-05,92642.0,92623.0,0.0195302]
[1768315609382,9.547e-05,92642.0,92614.0,0.10796104]
[1768315609383,0.010805,92637.0,92614.0,0.10796104]
[1768315609577,0.006,92638.0,92615.0,0.09716]
[1768315609788,0.006,92638.0,92616.0,0.0195302]
[1768315610287,0.006,92638.0,92619.0,0.0195302]
[1768315610789,0.006,92638.0,92619.0,0.108007]
[1768315610989,0.10644801,92655.0,92622.0,0.0195302]
[1768315611186,0.010804,92643.0,92622.0,0.0195302]
[1768315611488,0.010804,92645.0,92622.0,0.0195302]
[1768315611691,0.006,92633.0,92622.0,0.0195302]
[1768315611890,0.0972,92655.0,92619.0,0.0972]
[1768315611891,0.010803,92653.0,92625.0,0.00965271]
[1768315612093,0.010803,92653.0,92619.0,0.0972]
[1768315612094,0.00924801,92660.0,92632.0,0.0195302]
[1768315612285,0.00924801,92660.0,92633.0,0.0972]
[1768315612487,0.00924801,92660.0,92613.0,0.00777399]
[1768315612488,0.010805,92640.0,92622.0,0.003]
[1768315612787,0.010806,92634.0,92622.0,0.003]
[1768315613190,0.010805,92636.0,92613.0,0.00477399]
[1768315613383,0.010806,92633.0,92613.0,0.00477399]
[1768315613583,0.00924801,92637.0,92613.0,0.00477399]
[1768315613789,0.010805,92639.0,92615.0,0.0195302]
[1768315614093,0.00924801,92646.0,92613.0,0.00477399]
[1768315614294,0.010806,92632.0,92613.0,0.00477399]
[1768315614490,0.00924801,92635.0,92613.0,0.00477399]
[1768315614696,0.00924801,92635.0,92614.0,0.010808]
[1768315614890,0.00924801,92635.0,92613.0,0.00477399]
[1768315615084,0.006,92634.0,92622.0,0.007]
[1768315615486,0.00924801,92633.0,92613.0,0.00477399]
[1768315615889,0.00924801,92633.0,92614.0,0.007]
[1768315616296,0.02005401,92632.0,92614.0,0.007]
[1768315616595,0.006,92633.0,92617.0,0.010807]
[1768315616791,0.006,92633.0,92613.0,0.02258199]
[1768315617193,0.006,92633.0,92619.0,0.010807]
[1768315617493,0.010805,92638.0,92619.0,0.00987749]
[1768315617694,0.010805,92638.0,92613.0,0.01177399]
[1768315617695,0.010805,92636.0,92613.0,0.01177399]
[1768315617997,0.010806,92633.0,92613.0,0.01177399]
[1768315618192,0.00922938,92642.0,92613.0,0.01177399]
[1768315618193,0.00924801,92635.0,92613.0,0.01177399]
[1768315618492,0.010805,92635.0,92613.0,0.01177399]
[1768315618694,0.010806,92628.0,92598.0,0.0195302]
[1768315618894,0.006,92632.0,92613.0,0.00987749]
[1768315619592,0.010804,92645.0,92624.0,0.00987749]
[1768315619795,0.006,92635.0,92627.0,0.006806]
[1768315620097,0.006,92635.0,92613.0,0.108008]
[1768315620098,0.0972,92651.0,92619.0,0.00965271]
[1768315620303,0.10644801,92658.0,92629.0,0.010806]
[1768315620501,0.10644801,92658.0,92606.0,0.00987749]
[1768315620502,0.00924801,92642.0,92618.0,0.010807]
[1768315620796,0.00924801,92635.0,92613.0,0.0972]
[1768315621097,0.02005301,92635.0,92613.0,0.0972]
[1768315621393,0.010806,92632.0,92613.0,0.0972]
[1768315621599,0.016806,92632.0,92613.0,0.008]
[1768315621905,0.02005401,92630.0,92613.0,0.008]
[1768315622197,0.00924801,92630.0,92613.0,0.008]
[1768315622399,0.006,92635.0,92613.0,0.008]
[1768315622589,0.010806,92633.0,92613.0,0.008]
[1768315622786,0.00924801,92634.0,92613.0,0.008]
[1768315623298,0.006,92635.0,92613.0,0.008]
[1768315623299,0.01624801,92630.0,92613.0,0.005]
[1768315623602,0.00924801,92629.0,92613.0,0.005]
[1768315624101,0.00924801,92629.0,92592.0,0.00965271]
[1768315624102,0.00924801,92626.0,92607.0,0.010809]
[1768315624287,0.00924801,92626.0,92603.0,0.09724]
[1768315624490,0.007,92630.0,92609.0,0.00987749]
[1768315624692,0.007,92630.0,92613.0,0.010808]
[1768315624895,0.006,92634.0,92615.0,0.0091476]
[1768315625100,0.010806,92631.0,92615.0,0.0091476]
[1768315625396,0.006,92634.0,92615.0,0.0091476]
[1768315625596,0.006,92634.0,92613.0,0.008]
[1768315625800,0.00938487,92627.0,92609.0,0.008]
[1768315626097,0.010807,92622.0,92609.0,0.008]
[1768315626296,0.006,92630.0,92609.0,0.0171476]
[1768315626606,0.189701,92676.0,92618.0,0.010807]
[1768315626607,0.006,92634.0,92618.0,0.010807]
[1768315627100,0.006,92634.0,92615.0,0.017808]
[1768315627407,0.00927613,92647.0,92615.0,0.017808]
[1768315627408,0.00938487,92652.0,92619.0,0.0091476]
[1768315627705,0.010798,92699.0,92632.0,0.0079526]
[1768315627706,0.09724,92654.0,92632.0,0.0079526]
[1768315627900,0.010803,92652.0,92633.0,0.010806]
[1768315628100,0.010803,92655.0,92633.0,0.01620364]
[1768315628294,0.010804,92651.0,92633.0,0.00539764]
[1768315628491,0.010804,92650.0,92633.0,0.00539764]
[1768315628798,0.010805,92642.0,92633.0,0.00539764]
[1768315628997,0.00938487,92648.0,92624.0,0.09724]
[1768315629196,0.006,92652.0,92624.0,0.09724]
[1768315629197,0.006,92652.0,92631.0,0.00956434]
[1768315629900,0.006,92652.0,92594.0,0.08530728]
[1768315629901,0.01538487,92650.0,92633.0,0.004]
[1768315630102,0.010804,92643.0,92633.0,0.004]
[1768315630294,0.010804,92643.0,92593.0,0.01620998]
[1768315630295,0.00938487,92641.0,92620.0,0.09724]
[1768315630494,0.00938487,92641.0,92608.0,0.11709699]
[1768315630495,0.010805,92635.0,92615.0,0.09724]
[1768315630695,0.108044,92643.0,92616.0,0.0091476]
[1768315630897,0.010805,92640.0,92618.0,0.0091476]
[1768315631204,0.010805,92640.0,92617.0,0.00956434]
[1768315631205,0.00938487,92634.0,92609.0,0.010808]
[1768315631401,0.00938487,92632.0,92609.0,0.010808]
[1768315631597,0.00938487,92632.0,92614.0,0.010808]
[1768315631805,0.010804,92650.0,92614.0,0.010808]
[1768315631806,0.00938487,92651.0,92617.0,0.010807]
[1768315632099,0.09724,92652.0,92625.0,0.01871194]
[1768315632302,0.108043,92652.0,92630.0,0.010806]
[1768315632605,0.09724,92652.0,92634.0,0.010805]
[1768315632795,0.09724,92652.0,92642.0,0.010804]
[1768315633101,0.09724,92665.0,92633.0,0.00956434]
[1768315633286,0.010802,92662.0,92643.0,0.010804]
[1768315633494,0.010804,92650.0,92626.0,0.09724]
[1768315633698,0.010803,92653.0,92626.0,0.09724]
[1768315633898,0.010803,92654.0,92626.0,0.09724]
[1768315634104,0.00938487,92658.0,92638.0,0.010805]
[1768315634105,0.010803,92657.0,92638.0,0.010805]
[1768315634289,0.010802,92663.0,92641.0,0.010805]
[1768315634491,0.00938487,92681.0,92647.0,0.010804]
[1768315634697,0.00938487,92681.0,92640.0,0.0091476]
[1768315634698,0.00938487,92677.0,92644.0,0.010804]
[1768315634900,0.00938487,92677.0,92659.0,0.010802]
[1768315635106,0.00938487,92677.0,92638.0,0.108045]
[1768315635107,0.09724,92679.0,92662.0,0.010802]
[1768315635295,0.09724,92679.0,92658.0,0.00356434]
[1768315635495,0.010799,92690.0,92659.0,0.0031476]
[1768315635798,0.010799,92692.0,92659.0,0.0031476]
[1768315636107,0.010799,92692.0,92666.0,0.010802]
[1768315636108,0.00937253,92691.0,92666.0,0.010802]
[1768315636298,0.006,92677.0,92666.0,0.010802]
[1768315636498,0.006,92677.0,92659.0,0.0081476]
[1768315636694,0.010798,92700.0,92661.0,0.010802]
[1768315636896,0.010798,92700.0,92677.0,0.0108]
[1768315637191,0.010798,92697.0,92674.0,0.09724]
[1768315637394,0.108037,92703.0,92679.0,0.0108]
[1768315637594,0.09724,92703.0,92674.0,0.1167324]
[1768315637795,0.002,92692.0,92683.0,0.0108]